fUSD/lending_fUSD_20260701
["ID","MTS","AMOUNT","RATE_DAILY","PERIOD"]
[426826405,1782912642000,-382.30083712,0.00026123,2]
[426826416,1782912642000,-486.25993334,0.00026123,2]
[426826406,1782912642000,-404.98315916,0.00026123,2]
[426826410,1782912642000,-165.94267455,0.00026123,2]
[426826412,1782912642000,-301.76185416,0.00026123,2]
[426826414,1782912642000,-317.25532407,0.00026123,2]
[426826417,1782912642000,-558.19536851,0.00026123,2]
[426826407,1782912642000,-306.93214607,0.00026123,2]
[426826415,1782912642000,-165.427374,0.00026123,2]
[426826411,1782912642000,-331.9250412,0.00026123,2]
[426826413,1782912642000,-214.04621816,0.00026123,2]
[426826408,1782912642000,-161.49319466,0.00026123,2]
[426826420,1782912642000,-1278.0,0.00026138,2]
[426826425,1782912642000,-154.72377748,0.00026247,2]
[426826422,1782912642000,-496.75296727,0.00026146,2]
[426826418,1782912642000,-302.72774339,0.00026123,2]
[426826421,1782912642000,-1231.0,0.00026138,2]
[426826428,1782912642000,-500.0,0.00026255,2]
[426826423,1782912642000,-2337.0,0.0002616,3]
[426826426,1782912642000,-516.45498593,0.00026255,2]
[426826424,1782912642000,-212.0,0.00026194,7]
[426826427,1782912642000,-496.14,0.00026255,2]
[426826429,1782912642000,-500.0,0.00026255,2]
[426826419,1782912642000,-223.0,0.00026138,2]
[426826430,1782912642000,-500.0,0.00026255,2]
[426826373,1782912642000,-647.2102978,0.0002612,2]
[426826431,1782912642000,-500.0,0.00026255,2]
[426826402,1782912642000,-265.8947183,0.00026123,2]
[426826403,1782912642000,-171.81838776,0.00026123,2]
[426826409,1782912642000,-483.79225527,0.00026123,2]
[426826396,1782912642000,-401.00854429,0.00026123,2]
[426826397,1782912642000,-484.04899762,0.00026123,2]
[426826378,1782912642000,-1145.22361384,0.0002612,2]
[426826368,1782912642000,-662.96948404,0.0002612,2]
[426826372,1782912642000,-537.3318732,0.0002612,2]
[426826377,1782912642000,-650.64787739,0.0002612,2]
[426826376,1782912642000,-224.77481991,0.0002612,2]
[426826380,1782912642000,-381.94266403,0.00026123,2]
[426826392,1782912642000,-627.51234813,0.00026123,2]
[426826391,1782912642000,-625.19531836,0.00026123,2]
[426826382,1782912642000,-649.87897711,0.00026123,2]
[426826390,1782912642000,-716.4424976,0.00026123,2]
[426826389,1782912642000,-579.11525006,0.00026123,2]
[426826381,1782912642000,-706.58108219,0.00026123,2]
[426826387,1782912642000,-623.92379914,0.00026123,2]
[426826379,1782912642000,-420.34905332,0.00026123,2]
[426826385,1782912642000,-476.4768035,0.00026123,2]
[426826384,1782912642000,-216.20803639,0.00026123,2]
[426826399,1782912642000,-627.02106923,0.00026123,2]
[426826393,1782912642000,-708.6524981,0.00026123,2]
[426826400,1782912642000,-386.88308409,0.00026123,2]
[426826398,1782912642000,-1065.57695544,0.00026123,2]
[426826404,1782912642000,-169.88202936,0.00026123,2]
[426826401,1782912642000,-453.13623667,0.00026123,2]
[426826394,1782912642000,-412.04842883,0.00026123,2]
[426826388,1782912642000,-883.95931205,0.00026123,2]
[426826386,1782912642000,-526.03414494,0.00026123,2]
[426826383,1782912642000,-439.98491294,0.00026123,2]
[426826395,1782912642000,-1400.38035592,0.00026123,2]
[426826475,1782912643000,-779.90474893,0.00026679,2]
[426826466,1782912643000,-178.91245986,0.00026668,2]
[426826468,1782912643000,-903.53421115,0.00026676,2]
[426826462,1782912643000,-821.39569707,0.00026668,2]
[426826467,1782912643000,-1705.21714389,0.00026676,2]
[426826472,1782912643000,-813.30984674,0.00026676,2]
[426826473,1782912643000,-1431.52951729,0.00026676,2]
[426826471,1782912643000,-809.01287224,0.00026676,2]
[426826470,1782912643000,-974.26389219,0.00026676,2]
[426826464,1782912643000,-803.42149034,0.00026668,2]
[426826469,1782912643000,-908.60319542,0.00026676,2]
[426826465,1782912643000,-939.85412474,0.00026668,2]
[426826476,1782912643000,-781.49414795,0.00026679,2]
[426826481,1782912643000,-590.37,0.00026683,7]
[426826486,1782912643000,-7248.62094266,0.000267,2]
[426826477,1782912643000,-776.01593756,0.00026679,2]
[426826478,1782912643000,-885.81562262,0.00026679,2]
[426826487,1782912643000,-3100.0,0.000267,9]
[426826479,1782912643000,-1750.47544491,0.00026679,2]
[426826482,1782912643000,-178.3773729,0.00026699,2]
[426826488,1782912643000,-1306.6230462,0.000267,2]
[426826483,1782912643000,-2490.46839044,0.000267,2]
[426826480,1782912643000,-1331.9711943,0.00026679,2]
[426826484,1782912643000,-158.10239344,0.000267,2]
[426826485,1782912643000,-434.25575529,0.000267,2]
[426826463,1782912643000,-781.79891823,0.00026668,2]
[426826474,1782912643000,-812.34872139,0.00026679,2]
[426826461,1782912643000,-910.17221432,0.00026668,2]
[426826491,1782912643000,-401.62895546,0.00026718,2]
[426826458,1782912643000,-847.03818374,0.00026668,2]
[426826436,1782912643000,-151.0,0.00026296,2]
[426826438,1782912643000,-496.75296727,0.00026331,2]
[426826434,1782912643000,-500.0,0.00026255,2]
[426826435,1782912643000,-10344.6565,0.00026267,2]
[426826437,1782912643000,-1981.97778634,0.00026313,2]
[426826440,1782912643000,-412.0,0.00026375,2]
[426826439,1782912643000,-151.0,0.00026338,2]
[426826433,1782912643000,-500.0,0.00026255,2]
[426826441,1782912643000,-2337.0,0.0002648,3]
[426826443,1782912643000,-158.0,0.00026519,2]
[426826444,1782912643000,-245.0,0.0002652,2]
[426826442,1782912643000,-496.75296727,0.00026515,2]
[426826459,1782912643000,-772.14272351,0.00026668,2]
[426826447,1782912643000,-279.0,0.00026521,2]
[426826451,1782912643000,-735.1,0.00026551,7]
[426826452,1782912643000,-244.0,0.00026568,2]
[426826450,1782912643000,-200.0,0.00026545,2]
[426826448,1782912643000,-155.13942,0.0002653,2]
[426826449,1782912643000,-155.13942,0.0002653,2]
[426826446,1782912643000,-306.0,0.0002652,2]
[426826455,1782912643000,-2000.0,0.00026622,7]
[426826456,1782912643000,-10000.0,0.0002666,4]
[426826453,1782912643000,-1981.97778634,0.00026587,2]
[426826457,1782912643000,-789.56278128,0.00026668,2]
[426826454,1782912643000,-227.91704626,0.00026587,2]
[426826460,1782912643000,-1130.70320725,0.00026668,2]
[426826445,1782912643000,-308.0,0.0002652,2]
[426826499,1782912643000,-500.0,0.00026799,2]
[426826497,1782912643000,-500.0,0.00026799,2]
[426826494,1782912643000,-264.10114373,0.0002677,2]
[426826520,1782912643000,-683.34,0.000268,7]
[426826524,1782912643000,-357.214998,0.000268,2]
[426826526,1782912643000,-357.214998,0.000268,2]
[426826528,1782912643000,-1080.958635,0.000268,2]
[426826527,1782912643000,-1080.958635,0.000268,2]
[426826535,1782912643000,-517.05243255,0.00026909,2]
[426826525,1782912643000,-357.214998,0.000268,2]
[426826534,1782912643000,-600.0,0.000269,9]
[426826529,1782912643000,-1080.958635,0.000268,2]
[426826530,1782912643000,-1080.958635,0.000268,2]
[426826531,1782912643000,-600.0,0.000268,9]
[426826533,1782912643000,-154.72377748,0.00026887,2]
[426826518,1782912643000,-151.0,0.000268,2]
[426826536,1782912643000,-517.05243255,0.00026973,2]
[426826537,1782912643000,-261.0,0.00026988,5]
[426826541,1782912643000,-530.0,0.00027,2]
[426826539,1782912643000,-250.0,0.00027,2]
[426826542,1782912643000,-2000.05402815,0.00027,2]
[426826540,1782912643000,-1058.06176214,0.00027,2]
[426826543,1782912643000,-154.0,0.00027,2]
[426826544,1782912643000,-154.0,0.00027,2]
[426826545,1782912643000,-472.0,0.00027,2]
[426826546,1782912643000,-387.0,0.00027,2]
[426826547,1782912643000,-175.0,0.00027,7]
[426826548,1782912643000,-400.0,0.00027079,2]
[426826549,1782912643000,-1008.34,0.00027114,7]
[426826538,1782912643000,-10647.7813192,0.00027,5]
[426826519,1782912643000,-250.0,0.000268,5]
[426826532,1782912643000,-1981.97778649,0.00026861,2]
[426826516,1782912643000,-4559.56962722,0.000268,2]
[426826517,1782912643000,-650500.53524874,0.000268,2]
[426826496,1782912643000,-500.0,0.00026799,2]
[426826489,1782912643000,-496.75296727,0.000267,2]
[426826492,1782912643000,-168.0,0.00026737,2]
[426826493,1782912643000,-301.48228321,0.0002677,2]
[426826495,1782912643000,-508.87450772,0.0002679,2]
[426826498,1782912643000,-506.93851576,0.00026799,2]
[426826500,1782912643000,-500.0,0.00026799,2]
[426826504,1782912643000,-500.0,0.00026799,2]
[426826501,1782912643000,-500.0,0.00026799,2]
[426826503,1782912643000,-403.6837646,0.00026799,2]
[426826502,1782912643000,-500.0,0.00026799,2]
[426826511,1782912643000,-500.0,0.00026799,2]
[426826490,1782912643000,-3379.45664479,0.00026702,2]
[426826505,1782912643000,-500.0,0.00026799,2]
[426826507,1782912643000,-520.63139232,0.00026799,2]
[426826521,1782912643000,-1053.22955628,0.000268,2]
[426826514,1782912643000,-306.33308616,0.00026799,10]
[426826515,1782912643000,-2449990.00926631,0.000268,2]
[426826523,1782912643000,-357.214998,0.000268,2]
[426826512,1782912643000,-500.0,0.00026799,2]
[426826522,1782912643000,-151.0,0.000268,2]
[426826506,1782912643000,-500.0,0.00026799,2]
[426826509,1782912643000,-500.0,0.00026799,2]
[426826510,1782912643000,-184.57095073,0.00026799,2]
[426826508,1782912643000,-500.0,0.00026799,2]
[426826513,1782912643000,-500.78392869,0.00026799,2]
[426826593,1782912644000,-11109.47065424,0.00027359,2]
[426826588,1782912644000,-899.77,0.00027317,7]
[426826586,1782912644000,-200.0,0.00027286,2]
[426826582,1782912644000,-517.05243255,0.00027223,2]
[426826584,1782912644000,-978.31,0.00027247,7]
[426826590,1782912644000,-517.05243255,0.00027332,2]
[426826585,1782912644000,-517.05243255,0.00027264,2]
[426826589,1782912644000,-517.05243255,0.00027331,2]
[426826587,1782912644000,-517.05243255,0.00027313,2]
[426826583,1782912644000,-517.05243255,0.00027231,2]
[426826592,1782912644000,-678.22930553,0.00027359,2]
[426826581,1782912644000,-517.05243255,0.00027216,2]
[426826591,1782912644000,-176.10334244,0.00027339,2]
[426826598,1782912644000,-8306.38077912,0.0002739,2]
[426826596,1782912644000,-508.87450772,0.00027387,2]
[426826595,1782912644000,-567.41,0.00027383,2]
[426826597,1782912644000,-4205.0885825,0.0002739,2]
[426826599,1782912644000,-217.8681446,0.00027397,7]
[426826601,1782912644000,-150.51261936,0.00027397,7]
[426826600,1782912644000,-1508.07,0.00027397,2]
[426826604,1782912644000,-153.934412,0.00027397,2]
[426826602,1782912644000,-470.55142484,0.00027397,7]
[426826603,1782912644000,-151.0,0.00027397,2]
[426826605,1782912644000,-151.0,0.00027397,2]
[426826606,1782912644000,-151.0,0.00027397,2]
[426826579,1782912644000,-2935.0,0.00027183,10]
[426826594,1782912644000,-517.05243255,0.0002736,2]
[426826578,1782912644000,-161.61,0.0002718,2]
[426826560,1782912644000,-1041.0,0.00027123,2]
[426826580,1782912644000,-517.05243255,0.000272,2]
[426826610,1782912644000,-151.0,0.00027397,15]
[426826551,1782912644000,-1134.34,0.0002712,7]
[426826558,1782912644000,-1191.9010909,0.00027123,2]
[426826553,1782912644000,-1283.0,0.00027123,2]
[426826552,1782912644000,-605.79249916,0.00027123,2]
[426826559,1782912644000,-11904.0,0.00027123,2]
[426826555,1782912644000,-1327.0,0.00027123,2]
[426826556,1782912644000,-332.0,0.00027123,2]
[426826550,1782912644000,-1288.0,0.0002712,7]
[426826557,1782912644000,-669.3545045,0.00027123,2]
[426826554,1782912644000,-321.0,0.00027123,2]
[426826562,1782912644000,-8738.0,0.00027123,2]
[426826569,1782912644000,-153.0,0.00027123,3]
[426826571,1782912644000,-517.05243255,0.00027134,2]
[426826572,1782912644000,-227.91704627,0.00027135,2]
[426826570,1782912644000,-151.0,0.00027123,3]
[426826563,1782912644000,-1413.0,0.00027123,2]
[426826561,1782912644000,-874.91123677,0.00027123,2]
[426826565,1782912644000,-764.0,0.00027123,2]
[426826567,1782912644000,-151.0,0.00027123,3]
[426826564,1782912644000,-353.9289091,0.00027123,2]
[426826566,1782912644000,-151.0,0.00027123,3]
[426826568,1782912644000,-166.0,0.00027123,3]
[426826573,1782912644000,-501.0,0.00027137,2]
[426826574,1782912644000,-721.14,0.00027152,2]
[426826576,1782912644000,-546.0,0.00027171,2]
[426826577,1782912644000,-744.0,0.00027173,2]
[426826575,1782912644000,-471.29,0.00027153,2]
[426826609,1782912644000,-151.0,0.00027397,15]
[426826612,1782912644000,-151.0,0.00027397,15]
[426826647,1782912644000,-500.0,0.00027397,2]
[426826635,1782912644000,-598.74384478,0.00027397,2]
[426826636,1782912644000,-500.0,0.00027397,2]
[426826644,1782912644000,-500.0,0.00027397,2]
[426826646,1782912644000,-500.0,0.00027397,2]
[426826645,1782912644000,-500.0,0.00027397,2]
[426826648,1782912644000,-500.0,0.00027397,2]
[426826650,1782912644000,-500.0,0.00027397,2]
[426826656,1782912644000,-191.45661658,0.00027397,2]
[426826653,1782912644000,-500.0,0.00027397,2]
[426826654,1782912644000,-357.214998,0.00027397,2]
[426826652,1782912644000,-500.0,0.00027397,2]
[426826655,1782912644000,-357.214998,0.00027397,2]
[426826651,1782912644000,-500.0,0.00027397,2]
[426826658,1782912644000,-357.214998,0.00027397,2]
[426826657,1782912644000,-150.0,0.00027397,2]
[426826669,1782912644000,-1080.958635,0.00027397,2]
[426826668,1782912644000,-1080.958635,0.00027397,2]
[426826663,1782912644000,-357.214998,0.00027397,2]
[426826659,1782912644000,-357.214998,0.00027397,2]
[426826661,1782912644000,-357.214998,0.00027397,2]
[426826666,1782912644000,-1080.958635,0.00027397,2]
[426826664,1782912644000,-1080.958635,0.00027397,2]
[426826662,1782912644000,-357.214998,0.00027397,2]
[426826660,1782912644000,-357.214998,0.00027397,2]
[426826665,1782912644000,-1080.958635,0.00027397,2]
[426826607,1782912644000,-153.51905,0.00027397,2]
[426826667,1782912644000,-1080.958635,0.00027397,2]
[426826634,1782912644000,-500.0,0.00027397,2]
[426826637,1782912644000,-500.0,0.00027397,2]
[426826649,1782912644000,-500.0,0.00027397,2]
[426826633,1782912644000,-278.309815,0.00027397,2]
[426826608,1782912644000,-150.0,0.00027397,2]
[426826611,1782912644000,-151.0,0.00027397,15]
[426826617,1782912644000,-151.0,0.00027397,2]
[426826615,1782912644000,-151.0,0.00027397,2]
[426826613,1782912644000,-210.425724,0.00027397,15]
[426826616,1782912644000,-151.0,0.00027397,2]
[426826614,1782912644000,-151.0,0.00027397,2]
[426826618,1782912644000,-174.257321,0.00027397,2]
[426826620,1782912644000,-151.0,0.00027397,2]
[426826638,1782912644000,-500.0,0.00027397,2]
[426826624,1782912644000,-1605.5331,0.00027397,2]
[426826621,1782912644000,-151.0,0.00027397,2]
[426826622,1782912644000,-151.0,0.00027397,2]
[426826626,1782912644000,-1605.5331,0.00027397,2]
[426826623,1782912644000,-301.598023,0.00027397,2]
[426826619,1782912644000,-151.0,0.00027397,2]
[426826642,1782912644000,-500.0,0.00027397,2]
[426826625,1782912644000,-1605.5331,0.00027397,2]
[426826640,1782912644000,-500.0,0.00027397,2]
[426826641,1782912644000,-500.0,0.00027397,2]
[426826643,1782912644000,-500.0,0.00027397,2]
[426826639,1782912644000,-500.0,0.00027397,2]
[426826631,1782912644000,-1605.5331,0.00027397,2]
[426826630,1782912644000,-1605.5331,0.00027397,2]
[426826627,1782912644000,-1605.5331,0.00027397,2]
[426826629,1782912644000,-1605.5331,0.00027397,2]
[426826628,1782912644000,-1605.5331,0.00027397,2]
[426826632,1782912644000,-151.0,0.00027397,2]
[426826717,1782912645000,-151.0,0.00027397,2]
[426826718,1782912645000,-159.224358,0.00027397,2]
[426826711,1782912645000,-159.224358,0.00027397,2]
[426826710,1782912645000,-211.270045,0.00027397,2]
[426826716,1782912645000,-159.224358,0.00027397,2]
[426826706,1782912645000,-162.96236,0.00027397,2]
[426826704,1782912645000,-162.96236,0.00027397,2]
[426826705,1782912645000,-162.96236,0.00027397,2]
[426826703,1782912645000,-162.96236,0.00027397,2]
[426826701,1782912645000,-220.4,0.00027397,2]
[426826707,1782912645000,-151.0,0.00027397,2]
[426826708,1782912645000,-151.0,0.00027397,2]
[426826709,1782912645000,-211.270045,0.00027397,2]
[426826724,1782912645000,-289.334528,0.00027397,2]
[426826713,1782912645000,-159.224358,0.00027397,2]
[426826714,1782912645000,-211.270045,0.00027397,2]
[426826712,1782912645000,-211.270045,0.00027397,2]
[426826715,1782912645000,-151.0,0.00027397,2]
[426826725,1782912645000,-289.334528,0.00027397,2]
[426826723,1782912645000,-263.532813,0.00027397,2]
[426826720,1782912645000,-263.532813,0.00027397,2]
[426826722,1782912645000,-275.878677,0.00027397,2]
[426826729,1782912645000,-263.532813,0.00027397,2]
[426826728,1782912645000,-289.334528,0.00027397,2]
[426826727,1782912645000,-289.334528,0.00027397,2]
[426826726,1782912645000,-263.532813,0.00027397,2]
[426826699,1782912645000,-220.4,0.00027397,2]
[426826719,1782912645000,-151.0,0.00027397,2]
[426826696,1782912645000,-151.0,0.00027397,2]
[426826679,1782912645000,-783.095307,0.00027397,2]
[426826695,1782912645000,-176.892629,0.00027397,2]
[426826680,1782912645000,-783.095307,0.00027397,2]
[426826681,1782912645000,-1500.0,0.00027397,2]
[426826674,1782912645000,-783.095307,0.00027397,2]
[426826671,1782912645000,-1080.958635,0.00027397,2]
[426826670,1782912645000,-1080.958635,0.00027397,2]
[426826675,1782912645000,-783.095307,0.00027397,2]
[426826673,1782912645000,-783.095307,0.00027397,2]
[426826678,1782912645000,-783.095307,0.00027397,2]
[426826672,1782912645000,-546.13899689,0.00027397,2]
[426826676,1782912645000,-783.095307,0.00027397,2]
[426826677,1782912645000,-783.095307,0.00027397,2]
[426826694,1782912645000,-176.892629,0.00027397,2]
[426826683,1782912645000,-220.635484,0.00027397,2]
[426826682,1782912645000,-151.0,0.00027397,2]
[426826693,1782912645000,-176.892629,0.00027397,2]
[426826687,1782912645000,-176.892629,0.00027397,2]
[426826686,1782912645000,-176.892629,0.00027397,2]
[426826685,1782912645000,-176.892629,0.00027397,2]
[426826684,1782912645000,-176.892629,0.00027397,2]
[426826690,1782912645000,-176.892629,0.00027397,2]
[426826691,1782912645000,-176.892629,0.00027397,2]
[426826688,1782912645000,-176.892629,0.00027397,2]
[426826689,1782912645000,-176.892629,0.00027397,2]
[426826692,1782912645000,-176.892629,0.00027397,2]
[426826700,1782912645000,-220.4,0.00027397,2]
[426826698,1782912645000,-220.4,0.00027397,2]
[426826702,1782912645000,-158.181751,0.00027397,2]
[426826697,1782912645000,-151.0,0.00027397,2]
[426826732,1782912645000,-289.334528,0.00027397,2]
[426826788,1782912645000,-442.12,0.00027397,2]
[426826730,1782912645000,-289.334528,0.00027397,2]
[426826771,1782912645000,-158.453121,0.00027397,2]
[426826769,1782912645000,-212.30138,0.00027397,2]
[426826762,1782912645000,-207.55,0.00027397,2]
[426826768,1782912645000,-212.30138,0.00027397,2]
[426826761,1782912645000,-207.55,0.00027397,2]
[426826759,1782912645000,-151.0,0.00027397,2]
[426826765,1782912645000,-207.55,0.00027397,2]
[426826772,1782912645000,-212.30138,0.00027397,2]
[426826774,1782912645000,-212.30138,0.00027397,2]
[426826775,1782912645000,-212.30138,0.00027397,2]
[426826776,1782912645000,-175.285291,0.00027397,2]
[426826773,1782912645000,-212.30138,0.00027397,2]
[426826780,1782912645000,-442.12,0.00027397,2]
[426826778,1782912645000,-175.285291,0.00027397,2]
[426826777,1782912645000,-175.285291,0.00027397,2]
[426826781,1782912645000,-442.12,0.00027397,2]
[426826779,1782912645000,-175.285291,0.00027397,2]
[426826782,1782912645000,-175.285291,0.00027397,2]
[426826784,1782912645000,-442.12,0.00027397,2]
[426826783,1782912645000,-175.285291,0.00027397,2]
[426826786,1782912645000,-175.285291,0.00027397,2]
[426826791,1782912645000,-442.12,0.00027397,2]
[426826785,1782912645000,-442.12,0.00027397,2]
[426826789,1782912645000,-442.12,0.00027397,2]
[426826790,1782912645000,-442.12,0.00027397,2]
[426826792,1782912645000,-151.0,0.00027397,2]
[426826721,1782912645000,-531.09,0.00027397,2]
[426826767,1782912645000,-212.30138,0.00027397,2]
[426826760,1782912645000,-151.0,0.00027397,2]
[426826787,1782912645000,-175.285291,0.00027397,2]
[426826770,1782912645000,-151.0,0.00027397,2]
[426826764,1782912645000,-207.55,0.00027397,2]
[426826731,1782912645000,-289.334528,0.00027397,2]
[426826745,1782912645000,-155.246712,0.00027397,2]
[426826733,1782912645000,-289.334528,0.00027397,2]
[426826735,1782912645000,-151.0,0.00027397,2]
[426826742,1782912645000,-151.0,0.00027397,2]
[426826744,1782912645000,-155.246712,0.00027397,2]
[426826734,1782912645000,-151.0,0.00027397,2]
[426826736,1782912645000,-151.0,0.00027397,2]
[426826740,1782912645000,-151.0,0.00027397,2]
[426826738,1782912645000,-151.0,0.00027397,2]
[426826739,1782912645000,-151.0,0.00027397,2]
[426826737,1782912645000,-151.0,0.00027397,2]
[426826741,1782912645000,-151.0,0.00027397,2]
[426826743,1782912645000,-151.0,0.00027397,2]
[426826748,1782912645000,-155.246712,0.00027397,2]
[426826747,1782912645000,-155.246712,0.00027397,2]
[426826766,1782912645000,-212.30138,0.00027397,2]
[426826753,1782912645000,-207.55,0.00027397,2]
[426826750,1782912645000,-155.246712,0.00027397,2]
[426826757,1782912645000,-207.55,0.00027397,2]
[426826755,1782912645000,-151.0,0.00027397,2]
[426826751,1782912645000,-155.246712,0.00027397,2]
[426826754,1782912645000,-207.55,0.00027397,2]
[426826758,1782912645000,-207.55,0.00027397,2]
[426826749,1782912645000,-155.246712,0.00027397,2]
[426826763,1782912645000,-170.019397,0.00027397,2]
[426826752,1782912645000,-155.246712,0.00027397,2]
[426826756,1782912645000,-151.0,0.00027397,2]
[426826831,1782912646000,-411.808876,0.00027397,2]
[426826821,1782912646000,-340.485688,0.00027397,2]
[426826828,1782912646000,-411.808876,0.00027397,2]
[426826827,1782912646000,-253.366401,0.00027397,2]
[426826823,1782912646000,-253.366401,0.00027397,2]
[426826825,1782912646000,-253.366401,0.00027397,2]
[426826824,1782912646000,-253.366401,0.00027397,2]
[426826830,1782912646000,-769.38,0.00027397,2]
[426826832,1782912646000,-411.808876,0.00027397,2]
[426826829,1782912646000,-411.808876,0.00027397,2]
[426826822,1782912646000,-253.366401,0.00027397,2]
[426826826,1782912646000,-253.366401,0.00027397,2]
[426826834,1782912646000,-411.808876,0.00027397,2]
[426826836,1782912646000,-411.808876,0.00027397,2]
[426826839,1782912646000,-151.0,0.00027397,2]
[426826837,1782912646000,-151.0,0.00027397,2]
[426826838,1782912646000,-151.0,0.00027397,2]
[426826835,1782912646000,-411.808876,0.00027397,2]
[426826847,1782912646000,-151.0,0.00027397,2]
[426826840,1782912646000,-151.0,0.00027397,2]
[426826841,1782912646000,-151.0,0.00027397,2]
[426826843,1782912646000,-151.0,0.00027397,2]
[426826820,1782912646000,-151.0,0.00027397,2]
[426826845,1782912646000,-151.0,0.00027397,2]
[426826833,1782912646000,-411.808876,0.00027397,2]
[426826817,1782912646000,-151.0,0.00027397,2]
[426826809,1782912646000,-151.0,0.00027397,2]
[426826814,1782912646000,-151.0,0.00027397,2]
[426826849,1782912646000,-151.0,0.00027397,2]
[426826794,1782912646000,-151.0,0.00027397,2]
[426826793,1782912646000,-151.0,0.00027397,2]
[426826795,1782912646000,-151.0,0.00027397,2]
[426826797,1782912646000,-151.0,0.00027397,2]
[426826799,1782912646000,-163.292363,0.00027397,2]
[426826803,1782912646000,-226.958362,0.00027397,2]
[426826796,1782912646000,-151.0,0.00027397,2]
[426826798,1782912646000,-151.0,0.00027397,2]
[426826800,1782912646000,-151.0,0.00027397,2]
[426826802,1782912646000,-151.0,0.00027397,2]
[426826819,1782912646000,-253.366401,0.00027397,2]
[426826801,1782912646000,-151.0,0.00027397,2]
[426826805,1782912646000,-151.0,0.00027397,2]
[426826806,1782912646000,-340.485688,0.00027397,2]
[426826807,1782912646000,-151.0,0.00027397,2]
[426826808,1782912646000,-340.485688,0.00027397,2]
[426826810,1782912646000,-340.485688,0.00027397,2]
[426826812,1782912646000,-151.0,0.00027397,2]
[426826811,1782912646000,-340.485688,0.00027397,2]
[426826815,1782912646000,-340.485688,0.00027397,2]
[426826816,1782912646000,-253.366401,0.00027397,2]
[426826818,1782912646000,-340.485688,0.00027397,2]
[426826813,1782912646000,-340.485688,0.00027397,2]
[426826804,1782912646000,-151.0,0.00027397,2]
[426826851,1782912646000,-151.0,0.00027397,2]
[426826856,1782912646000,-151.0,0.00027397,2]
[426826860,1782912646000,-342.70059,0.00027397,2]
[426826886,1782912646000,-1331.827063,0.00027397,2]
[426826887,1782912646000,-286.652319,0.00027397,2]
[426826888,1782912646000,-499.775022,0.00027397,2]
[426826891,1782912646000,-151.0,0.00027397,2]
[426826896,1782912646000,-286.652319,0.00027397,2]
[426826897,1782912646000,-499.775022,0.00027397,2]
[426826898,1782912646000,-286.652319,0.00027397,2]
[426826906,1782912646000,-266.304193,0.00027397,2]
[426826900,1782912646000,-286.652319,0.00027397,2]
[426826904,1782912646000,-151.0,0.00027397,2]
[426826899,1782912646000,-151.0,0.00027397,2]
[426826889,1782912646000,-286.652319,0.00027397,2]
[426826902,1782912646000,-151.0,0.00027397,2]
[426826901,1782912646000,-151.0,0.00027397,2]
[426826905,1782912646000,-207.930781,0.00027397,2]
[426826909,1782912646000,-151.0,0.00027397,2]
[426826908,1782912646000,-207.930781,0.00027397,2]
[426826911,1782912646000,-207.930781,0.00027397,2]
[426826912,1782912646000,-207.930781,0.00027397,2]
[426826915,1782912646000,-151.0,0.00027397,2]
[426826910,1782912646000,-255.9357,0.00027397,2]
[426826916,1782912646000,-151.0,0.00027397,2]
[426826914,1782912646000,-207.930781,0.00027397,2]
[426826913,1782912646000,-207.930781,0.00027397,2]
[426826903,1782912646000,-207.930781,0.00027397,2]
[426826890,1782912646000,-1331.827063,0.00027397,2]